Cogmind - Beta 16 @@@ ROGUE MODE // 2025.11.13 @ 15:38:38 Player: Mozco Result: Destroyed by G-34 Mercenary with Small Laser Performance ------------- Evolutions (0) 0 Regions Visited (1) 200 Robots Destroyed (2) 10 Value Destroyed (44) 44 Prototype IDs (2) 40 Alien Tech Used (0) 0 Bonus (0) 0 TOTAL SCORE: 294 Bonus ------- None Cogmind --------- Core Integrity 0/250 Matter 139/300 Energy 99/100 System Corruption 0% Temperature Cool (6) Movement Core (250) Ox4 Location -10/Materials Parts ------- > --- POWER (1) -------- (None) > --- PROPULSION (2) --- (None) > --- UTILITY (2) ------ Medium Storage Unit Core Shielding > --- WEAPON (2) ------- Flail Flail > --- INVENTORY (10) --- Light Ion Engine Improved Ion Engine Peak State ------------ > --- POWER ------------ Ion Engine > --- PROPULSION ------- Aluminum Leg Aluminum Leg > --- UTILITY ---------- Medium Storage Unit Core Shielding > --- WEAPON ----------- Flail Flail > --- INVENTORY -------- Light Ion Engine Core Shielding [Rating: 9] Favorites ----------- Power Ion Engine Engine Ion Engine Propulsion Aluminum Leg Leg Aluminum Leg Utility Core Shielding Storage Medium Storage Unit Protection Core Shielding Weapon Flail Impact Weapon Flail Build | -11 -10 ------- Run | Yrd Mat Slots Evolved . | . . Power . | . . Propulsion . | . . Utility . | . . Weapon . | . . Parts Attached 8 | . 8 Power 1 | . 1 Engine 1 | . 1 Core . | . . Reactor . | . . Propulsion 2 | . 2 Treads . | . . Leg 2 | . 2 Wheel . | . . Hover . | . . Flight . | . . Utility 3 | . 3 Device . | . . Storage 1 | . 1 Processor . | . . Hackware . | . . Protection 2 | . 2 Artifact . | . . Weapon 2 | . 2 Energy Gun . | . . Energy Cannon . | . . Ballistic Gun . | . . Ballistic Cannon . | . . Launcher . | . . Special Weapon . | . . Impact Weapon 2 | . 2 Slashing Weapon . | . . Piercing Weapon . | . . Special Melee Weapon . | . . Unidentified Prototypes . | . . Parts Lost 4 | . 4 Power 1 | . 1 Propulsion 2 | . 2 Utility 1 | . 1 Weapon . | . . Highest Loss Streak 4 | . 4 To Critical Strikes . | . . Average Backups 3 | 3 4 Power 1 | 1 1 Propulsion 1 | 1 1 Utility . | . . Weapon . | . . Tool/Special . | . . Unused Backups 3 | . 3 Power 2 | . 2 Propulsion . | . . Utility 1 | . 1 Weapon . | . . Tool/Special . | . . Average Slot Usage (%) 43 | . 43 Engine 4 | . 4 Leg 7 | . 7 Storage 5 | . 5 Protection 15 | . 15 Impact Weapon 9 | . 9 Peak Build Rating 9 | . 9 Average Rating 3 | . 4 On Entrance . | . . Avg Prop Armor Cover (%) . | . . Naked Turns 35 | . 35 Heaviest Build 20 | . 20 Greatest Support 20 | 3 20 Greatest Overweight (x) 4 | . 4 Average Overweight (x) . | . . Largest Inventory Capacity 10 | 5 10 Average Capacity 6 | 5 6 Most Carried 5 | 5 5 Average Carried 4 | 3 4 Final Capacity 10 | 5 10 Final Carried 5 | 5 2 Class Distribution -------------------- 100% | Mutant Dominant Class ---------------- Mutant | -10/Materials Resources | -11 -10 ----------- Run | Yrd Mat Matter Collected 109 | 106 3 Remotely . | . . Salvage Created 26 | . 26 Parts . | . . Haulers Intercepted . | . . Recyclers Shooed . | . . Parts Field Recycled . | . . Retrieved Matter . | . . Parts Self-Destructed . | . . Prevented . | . . Parts Restored . | . . Kills | -11 -10 ------- Run | Yrd Mat Combat Hostiles Destroyed 2 | . 2 Classes Destroyed 2 | . 2 Swarmer 1 | . 1 Grunt 1 | . 1 Best Kill Streak 1 | . 1 Combat Bots Only 1 | . 1 Max Kills in Single Turn 1 | . 1 Gunslinging . | . . Exploded . | . . Melee . | . . Uniques/NPCs Destroyed . | . . Combat | -11 -10 -------- Run | Yrd Mat Hostile Shots Fired 83 | . 83 Missed 23 | . 23 Hits 60 | . 60 Projectile 60 | . 60 AOE 1 | . 1 Damage Taken 716 | . 716 Core 258 | . 258 Absorbed by Shields . | . . Redirected to Shielding 59 | . 59 Core Remaining (%) 100 | 100 . Volleys Fired . | . . Largest . | . . Hottest . | . . Shots Fired . | . . Gun . | . . Cannon . | . . Launcher . | . . Special . | . . Kinetic . | . . Thermal . | . . Explosive . | . . Electromagnetic . | . . Robot Hit Streak . | . . Robot Miss Streak . | . . Penetration Max . | . . Secondary Targets . | . . Shots Hit Robots 10 | . 10 Core Hits . | . . Critical Kills . | . . Critical Parts Destroyed 2 | . 2 Critical Strikes 2 | . 2 Smash 2 | . 2 Melee Attacks 19 | . 19 Impact 19 | . 19 Slashing . | . . Piercing . | . . Sneak Attacks . | . . Combat Hostiles . | . . Follow-up Attacks 3 | . 3 Damage Inflicted 315 | . 315 Guns . | . . Cannons . | . . Explosions . | . . Melee 315 | . 315 Ramming . | . . Kinetic . | . . Thermal . | . . Explosive . | . . Electromagnetic . | . . Impact 315 | . 315 Slashing . | . . Piercing . | . . Highest Corruption . | . . Average Corruption . | . . Corruption Purged . | . . Corruption Blocked . | . . Overload Shots . | . . Overflow Damage 67 | . 67 Projectiles . | . . Explosions . | . . Melee 67 | . 67 Knockbacks 4 | . 4 Impact 3 | . 3 Kinetic . | . . Secondary 1 | . 1 Self-Inflicted Damage . | . . Shots . | . . Rammed . | . . Targets Rammed . | . . Kicked . | . . Crushed . | . . Highest Temperature 9 | . 9 Average Temperature 7 | . 7 Received Heat Transfer 288 | . 288 Siege Activations . | . . Martial Activations . | . . Shielding Activations . | . . Robots Disrupted . | . . Combat Hostiles . | . . Robots Corrupted 2 | . 2 Combat Hostiles 2 | . 2 Parts Fried 1 | . 1 Impact Corruptions 6 | . 6 Robots Melted . | . . Combat Hostiles . | . . Parts Melted . | . . Heat Transferred . | . . Parts Sabotaged . | . . Parts Stolen . | . . Parts Stripped . | . . Power Chain Reactions . | . . Alert | -11 -10 ------- Run | Yrd Mat Maximum Alert Level . | . . Low Security (%) 100 | 100 100 Level 1 . | . . Level 2 . | . . Level 3 . | . . Level 4 . | . . Level 5 . | . . High Security . | . . Max Security . | . . Peak Influence 35 | . 35 Initial . | . . Average 5 | . 6 Influence Increases 83 | . 83 Destroy 0b10 Robot/C 40 | . 40 Destroy Leader 10 | . 10 Successful Hack 18 | . 18 Lose Combat Pursuer 15 | . 15 Influence Decreases 78 | . 78 Time Decay 38 | . 38 Lost Part 40 | . 40 Squads Dispatched 3 | . 3 Investigation 2 | . 2 Extermination . | . . Reinforcement 1 | . 1 Assault . | . . Garrison . | . . Intercept . | . . Searches Triggered . | . . Construction Impeded . | . . Haulers Reinforced . | . . Active Scanning Responses . | . . Cargo Convoy Interrupts . | . . Stealth | -11 -10 --------- Run | Yrd Mat Distress Signals 2 | . 2 Communications Jammed . | . . Distress Signals . | . . Times Spotted 11 | . 11 Peak Tracking Total 9 | . 9 Tactical Retreats 1 | . 1 Traps | -11 -10 ------- Run | Yrd Mat Traps Triggered 1 | . 1 Indirectly . | . . Trap Hack Attempts . | . . Triggered . | . . Disarmed . | . . Reprogrammed . | . . Reused . | . . Traps Extracted . | . . Installed . | . . Triggered . | . . Machines | -11 -10 ---------- Run | Yrd Mat Machines Disabled . | . . Max in Single Turn . | . . Machines Repaired . | . . Machines Dismantled . | . . Machines Sabotaged . | . . Overloaded Fab Kills . | . . Hacking | -11 -10 --------- Run | Yrd Mat Machines Accessed 4 | . 4 Terminals 4 | . 4 Fabricators . | . . Repair Stations . | . . Recycling Units . | . . Scanalyzers . | . . Garrison Access . | . . Total Hacks 16 | . 16 Successful 7 | . 7 Failed 8 | . 8 Catastrophic 1 | . 1 Database Lockouts 1 | . 1 Manual 13 | . 13 Terminals 16 | . 16 Fabricators . | . . Repair Stations . | . . Recycling Units . | . . Scanalyzers . | . . Garrison Access . | . . Terminal Hacks 5 | . 5 Robot Analysis 1 | . 1 Prototype ID Bank 1 | . 1 Terminal Index 1 | . 1 Hauler Manifests 1 | . 1 Zone Layout 1 | . 1 Fabricator Hacks . | . . Repair Station Hacks . | . . Recycling Unit Hacks . | . . Scanalyzer . | . . Garrison Access Hacks . | . . Unauthorized Hacks 2 | . 2 Terminals 2 | . 2 Botnet 2 | . 2 Fabricators . | . . Repair Stations . | . . Recycling Units . | . . Scanalyzers . | . . Garrison Access . | . . Data Cores Recovered . | . . Used . | . . Hacking Detections 4 | . 4 Full Trace Events 1 | . 1 Feedback Events . | . . Feedback Blocked . | . . Robot Schematics Acquired . | . . Robots Built . | . . Authchips . | . . Time . | . . Total Robot Build Rating . | . . Part Schematics Acquired . | . . Parts Built . | . . Authchips . | . . Time . | . . Total Part Build Rating . | . . Part Studies Acquired . | . . Parts Repaired . | . . Time . | . . Parts Recycled . | . . Recycled Matter . | . . Retrieved Matter . | . . Retrieved Components . | . . Parts Scanalyzed . | . . Part Schematics Acquired . | . . Parts Damaged . | . . Bothacking | -11 -10 ------------ Run | Yrd Mat Used RIF Installer . | . . Robots Hacked . | . . Non-combat . | . . Combat . | . . Robot Hacks Applied . | . . Relay Couplers Released . | . . Fabnet Peak Effective % . | . . Robots Rewired . | . . Allies Hacked . | . . Hacks Repelled . | . . Allies | -11 -10 -------- Run | Yrd Mat Total Allies . | . . Largest Group . | . . Highest-Rated Group . | . . Highest-Rated Ally . | . . Total Orders . | . . Ally Attacks . | . . Total Damage . | . . Kills . | . . Allies Corrupted . | . . Allies Melted . | . . Intel | -11 -10 ------- Run | Yrd Mat Active Infowar (turns) . | . . Robot Analysis Total 1 | . 1 Derelict Logs Recovered . | . . Drone Launches . | . . Drone Recoveries . | . . Exploration | -11 -10 ------------- Run | Yrd Mat Turns Passed 211 | 26 185 Spaces Moved 273 | 41 232 Core 257 | 41 216 Treads . | . . Legs 16 | . 16 Wheels . | . . Hover . | . . Flight . | . . Fastest Speed 50 | 50 50 Average Speed 55 | 50 56 Slowest Speed 250 | 50 250 Overloaded Moves . | . . Propulsion Burnouts . | . . Robots Hopped . | . . Potential Cave-ins . | . . Cave-ins Triggered . | . . Exploration Rate (%) 30 | 4 57 Regions Visited 1 Branch Regions . Pre-discovered Areas . | . . Known Exits Taken . | . . Unknown Exits Taken 1 | 1 . Scrap Searched . | . . Spaces Dug . | . . Terrain Destroyed . | . . Melee . | . . Projectile . | . . AOE . | . . Terrain Rammed . | . . Walls Destroyed . | . . Machines Disabled . | . . Actions | -11 -10 --------- Run | Yrd Mat Total 307 | 45 262 Wait 3 | . 3 Move 272 | 40 232 Hop . | . . Pick Up 7 | 5 2 Fast Attach 4 | . 4 Attach 4 | . 4 Detach . | . . Swap 1 | . 1 Drop 1 | . 1 Fire . | . . Melee 15 | . 15 Ram . | . . Kick . | . . Crush . | . . Escape Stasis . | . . Rewire . | . . Trap . | . . Miscellaneous . | . . Route ------- -11/Scrapyard -10/Materials (discovered 3 exits: [*Mat x2] / [*Min]) History --------- Turn | Location | Event 4 | -11/Scrapyard | Discovered new exit (range 15) 27 | -11/Scrapyard | Entered Materials 66 | -10/Materials | Discovered new exit (range 14) 92 | -10/Materials | Discovered new exit (range 16) 129 | -10/Materials | Central database locked down 184 | -10/Materials | Core integrity fell below 50% 195 | -10/Materials | Discovered new exit (range 16) 203 | -10/Materials | Core integrity fell below 20% 212 | -10/Materials | Destroyed by G-34 Mercenary with Small Laser Last Messages --------------- 00182_ Fusion Modulator explodes. 00182_ S-10 Pest destroyed. 00186_ R-06 Scavenger collects Lgt. Assault Rifle. 00187_ Flail follow-up attack on G-34 Mercenary. 00191_ Aluminum Leg destroyed. 00193_ G-34 Mercenary knocked back. 00195_ Acquired 3 matter. 00195_ EXIT=FOUND 00202_ K-01 Serf collects debris. 00202_ Aluminum Leg destroyed. 00202_ Destroyed Aluminum Leg. 00202_ Destroyed Heat Sink. 00202_ G-34 Mercenary system corrupted by crushing effect. 00203_ G-34 Mercenary system terminally corrupted. 00203_ Sml. Laser fried. 00204_ G-34 Mercenary knocked back. 00205_ K-01 Serf collects debris. 00206_ Core Shielding destroyed. 00206_ Ion Engine destroyed. 00209_ K-01 Serf collects debris. Map ----- +----------------------------------------------------+ | ????????# #???????????????""""" | | ????????/ +?????????????? """"" | | ????????# #?????????????# """ | | ????????# #?????????????# | | ????????# #?????????????# | | ????????# #?????????????######## | | ????????# #??????????????????? # | | ????????# #??????????????????? # | | ????????# #??????????????????? # | | ????????# ##?????????????????? # | | ????##### aT#?????????????????? # | | ????#/ #??????????????????? # | | ????#/ #??????????????????? # | | ????#* #???????###????????? # | | ????#** #########T#######+#### | | ????#// | | ????#// | | ######### """ !!! | | # ; """ !! ### | | #;;;;;;;; """ !! # | | ; ! ; + " | | ; ; ####### " | | ; ; #####+#### #?????# " | | ; ; k#??? ??##+##?????# | | ; !; % #???"" #???????????#] | | #; % ;@ #???"" #???????????### | | #;;;;;g;; g#???"" #?????????????? | | ### # ;#g #????? #?????????????? | | ??####+## #????? #?????????????? | | ????? ?# +????? #?????????????? | | ???? ?# #????? ??????????????? | | ??? ! ?# #????????????????????? | | ?? ?# #????????????????????? | | ?? ""??# #????????????????????? | | ? ""??? #????????????????????? | | # ?????? +????????????????????? | | #"??????? #????????????????????? | | ????????? #????????????????????? | | ????????? < #????????????????????? | | ????????? ????????????????????? | | ?????????###?????????????????????? | | ?????????????????????????????????? | | ?????????????????????????????????? | | ?????????????????????????????????? | | ?????????????????????????????????? | | ?????????????????????????????????? | | ?????????????????????????????????? | | | | | | | +----------------------------------------------------+ Best States ------------- Heat Dissipation 25 Energy Generation 10 Energy Capacity 250 Matter Stores 206 Matter Capacity 300 Sight Range 16 Terrain Scan Density 10 Core Shielding 20 Evasion (%) 55 Item Schematics ----------------- None Robot Schematics ------------------ None Fabricated ------------ Nothing Repaired ---------- Nothing Studied --------- None Alien Tech Used ----------------- None Achievements -------------- None Challenges ------------ None Game ------ Seed PrecisionShiftWall Manual? 0 Play Time 00:06:12 Cumulative 264.7 hours Start 2025.11.13 @ 15:35:20 End 2025.11.13 @ 15:38:38 Sessions 1 Manual Loads 0 Difficulty Rogue Special Mode None Game No. 270 Rogue 266 Adventurer 3 Explorer 1 Win Type - Total 1 Types 1/0/0/0/0/0/0/0/0/0 Lore% 78 Gallery% 75 Achievement% 60 Wizard Run 0 Options --------- Layout 0 ASCII 0 Keyboard 0 Movement Mouse Keybinds 0 Fullscreen 2 Font 18/SmallcapsGlow Map View 76x50 Zoom Use 0% Tactical HUD 1 Map Filters NONE Filters NONE Steam 1 RUN: deede16b-000c-4806-817d-4990913fe847